[Event "*** MasterClass Titled Tuesday Blitz"]
[Site "Chess.com"]
[Date "2017.12.12"]
[Round "7"]
[White "amaidel"]
[Black "djano"]
[Result "1-0"]
[WhiteElo "2485"]
[BlackElo "2354"]
[TimeControl "180+2"]
[EndTime "14:40:45 PST"]
[Termination "amaidel won by resignation"]

1. e4 {[%clk 0:03:01.9]} 1... c5 {[%clk 0:03:00.1]} 2. Nf3 {[%clk 0:03:02.1]}
2... d6 {[%clk 0:03:01.1]} 3. d4 {[%clk 0:03:02.6]} 3... cxd4 {[%clk 0:03:03]}
4. Nxd4 {[%clk 0:03:04.3]} 4... Nf6 {[%clk 0:03:04]} 5. Nc3 {[%clk 0:03:05.8]}
5... a6 {[%clk 0:03:05.4]} 6. f4 {[%clk 0:03:05.3]} 6... e5 {[%clk 0:03:01.7]}
7. Nf3 {[%clk 0:03:05.8]} 7... exf4 {[%clk 0:02:59.8]} 8. Bxf4 {[%clk
0:03:04.6]} 8... Nc6 {[%clk 0:03:00.9]} 9. a4 {[%clk 0:03:02.9]} 9... Be7 {[%clk
0:02:59]} 10. Bc4 {[%clk 0:03:03.1]} 10... Qb6 {[%clk 0:02:55]} 11. Qd2 {[%clk
0:02:54]} 11... O-O {[%clk 0:02:52.9]} 12. Be3 {[%clk 0:02:43.8]} 12... Qc7
{[%clk 0:02:53.6]} 13. O-O {[%clk 0:02:37.6]} 13... Na5 {[%clk 0:02:44.8]} 14.
Ba2 {[%clk 0:02:27.1]} 14... Nc4 {[%clk 0:02:45.3]} 15. Qe2 {[%clk 0:02:22.6]}
15... Be6 {[%clk 0:02:35.2]} 16. Bd4 {[%clk 0:02:19.9]} 16... Rac8 {[%clk
0:02:15.8]} 17. Kh1 {[%clk 0:02:17.9]} 17... Nxb2 {[%clk 0:02:09.1]} 18. Bxe6
{[%clk 0:02:16.2]} 18... fxe6 {[%clk 0:02:08.6]} 19. e5 {[%clk 0:02:17.2]} 19...
dxe5 {[%clk 0:01:56.7]} 20. Nxe5 {[%clk 0:02:14.1]} 20... Nc4 {[%clk 0:01:51.9]}
21. Nf3 {[%clk 0:01:44.7]} 21... Qc6 {[%clk 0:01:35.3]} 22. Rfe1 {[%clk
0:01:45]} 22... Bb4 {[%clk 0:01:13.7]} 23. Rab1 {[%clk 0:01:45.3]} 23... a5
{[%clk 0:01:11.5]} 24. Qxe6+ {[%clk 0:01:40.6]} 24... Qxe6 {[%clk 0:01:12.3]}
25. Rxe6 {[%clk 0:01:41.2]} 25... Rfe8 {[%clk 0:01:13.7]} 26. Rxe8+ {[%clk
0:01:39]} 26... Rxe8 {[%clk 0:01:15.6]} 27. Bxf6 {[%clk 0:01:37.6]} 27... gxf6
{[%clk 0:01:17.5]} 28. Nd5 {[%clk 0:01:38.6]} 28... Rd8 {[%clk 0:01:07.9]} 29.
Nxb4 {[%clk 0:01:30.6]} 29... axb4 {[%clk 0:01:08.7]} 30. h3 {[%clk 0:01:28.9]}
30... Ne3 {[%clk 0:00:47.8]} 31. Rxb4 {[%clk 0:01:26.8]} 31... Rd1+ {[%clk
0:00:45.6]} 32. Kh2 {[%clk 0:01:27.3]} 32... Nf1+ {[%clk 0:00:46.8]} 33. Kg1
{[%clk 0:01:26.6]} 33... Ne3+ {[%clk 0:00:43.6]} 34. Kf2 {[%clk 0:01:25.7]}
34... Nxc2 {[%clk 0:00:42.4]} 35. Rxb7 {[%clk 0:01:24.1]} 35... Ra1 {[%clk
0:00:43.4]} 36. Ra7 {[%clk 0:01:24.7]} 36... f5 {[%clk 0:00:40.4]} 37. Nh4
{[%clk 0:01:19.9]} 37... f4 {[%clk 0:00:38.5]} 38. Nf5 {[%clk 0:01:19.4]} 38...
Ra3 {[%clk 0:00:32.7]} 39. a5 {[%clk 0:01:19.2]} 39... Nb4 {[%clk 0:00:33.8]}
40. Nh6+ {[%clk 0:01:10.9]} 40... Kh8 {[%clk 0:00:33.6]} 41. Nf7+ {[%clk
0:00:59.6]} 41... Kg8 {[%clk 0:00:32.6]} 42. Ne5 {[%clk 0:00:57.3]} 42... h5
{[%clk 0:00:26.5]} 43. Ng6 {[%clk 0:00:53.4]} 43... Nd3+ {[%clk 0:00:23.3]} 44.
Ke2 {[%clk 0:00:51]} 44... Nc1+ {[%clk 0:00:18.2]} 45. Kd2 {[%clk 0:00:45.2]}
45... Nb3+ {[%clk 0:00:18.6]} 46. Kc3 {[%clk 0:00:44]} 46... Rxa5 {[%clk
0:00:19.9]} 47. Rxa5 {[%clk 0:00:36.9]} 47... Nxa5 {[%clk 0:00:21.8]} 48. Nxf4
{[%clk 0:00:37.8]} 48... h4 {[%clk 0:00:21.8]} 49. Ng6 {[%clk 0:00:38.7]} 49...
Kg7 {[%clk 0:00:23.1]} 50. Nxh4 {[%clk 0:00:39.7]} 50... Kf6 {[%clk 0:00:23.6]}
51. Nf3 {[%clk 0:00:40.1]} 51... Nc6 {[%clk 0:00:22.9]} 52. Kd3 {[%clk
0:00:39.3]} 52... Kg6 {[%clk 0:00:22.8]} 53. Ke4 {[%clk 0:00:39]} 53... Ne7
{[%clk 0:00:23.3]} 54. g4 {[%clk 0:00:39.3]} 54... Ng8 {[%clk 0:00:22.9]} 55. h4
{[%clk 0:00:38]} 55... Nf6+ {[%clk 0:00:24.1]} 56. Kf4 {[%clk 0:00:39]} 56...
Nd5+ {[%clk 0:00:25.6]} 57. Ke5 {[%clk 0:00:39.8]} 57... Ne3 {[%clk 0:00:25.9]}
58. Kf4 {[%clk 0:00:38.8]} 58... Ng2+ {[%clk 0:00:25.2]} 59. Kg3 {[%clk
0:00:39.5]} 59... Ne3 {[%clk 0:00:26.7]} 60. Nd4 {[%clk 0:00:40.1]} 60... Nf1+
{[%clk 0:00:25.3]} 61. Kf2 {[%clk 0:00:38.7]} 61... Nh2 {[%clk 0:00:24]} 62. Kg3
{[%clk 0:00:39.5]} 62... Nf1+ {[%clk 0:00:25.1]} 63. Kf4 {[%clk 0:00:40.1]}
63... Nd2 {[%clk 0:00:26.2]} 64. Nf3 {[%clk 0:00:39.5]} 64... Nc4 {[%clk
0:00:26.5]} 65. Ne5+ {[%clk 0:00:40.2]} 1-0

[Event "*** MasterClass Titled Tuesday Blitz"]
[Site "Chess.com"]
[Date "2017.12.12"]
[Round "7"]
[White "Schemato"]
[Black "visa"]
[Result "1-0"]
[WhiteElo "2312"]
[BlackElo "2089"]
[TimeControl "180+2"]
[EndTime "14:40:55 PST"]
[Termination "Schemato won by resignation"]

1. c4 {[%clk 0:03:01.9]} 1... b6 {[%clk 0:02:59.9]} 2. Nc3 {[%clk 0:03:02.3]}
2... Bb7 {[%clk 0:03:01]} 3. e4 {[%clk 0:03:03.4]} 3... e6 {[%clk 0:03:01.7]} 4.
Nge2 {[%clk 0:03:00.4]} 4... f5 {[%clk 0:02:59.9]} 5. d3 {[%clk 0:02:54.8]} 5...
Bb4 {[%clk 0:02:56]} 6. g3 {[%clk 0:02:53.1]} 6... fxe4 {[%clk 0:02:49.7]} 7.
Bg2 {[%clk 0:02:54.1]} 7... Nf6 {[%clk 0:02:49.7]} 8. O-O {[%clk 0:02:51.9]}
8... O-O {[%clk 0:02:39.4]} 9. dxe4 {[%clk 0:02:52.3]} 9... e5 {[%clk
0:02:33.8]} 10. h3 {[%clk 0:02:46.7]} 10... d6 {[%clk 0:02:33.6]} 11. Be3 {[%clk
0:02:44.3]} 11... Bxc3 {[%clk 0:02:24.9]} 12. Nxc3 {[%clk 0:02:44.2]} 12... Bc8
{[%clk 0:02:25]} 13. Nd5 {[%clk 0:02:40.9]} 13... Be6 {[%clk 0:02:21.3]} 14. a4
{[%clk 0:02:24.9]} 14... Nc6 {[%clk 0:02:12.7]} 15. Qd2 {[%clk 0:02:20.8]} 15...
Qd7 {[%clk 0:02:12.6]} 16. Kh2 {[%clk 0:02:20.3]} 16... Ne7 {[%clk 0:01:59.8]}
17. b3 {[%clk 0:02:09.2]} 17... c6 {[%clk 0:01:51.3]} 18. Nxf6+ {[%clk
0:02:04.9]} 18... Rxf6 {[%clk 0:01:50.9]} 19. Rad1 {[%clk 0:02:03.8]} 19... Bf7
{[%clk 0:01:51.1]} 20. Bg5 {[%clk 0:02:01.8]} 20... Rg6 {[%clk 0:01:42.1]} 21.
h4 {[%clk 0:02:01.8]} 21... h6 {[%clk 0:01:42.1]} 22. Bh3 {[%clk 0:01:59.7]}
22... Be6 {[%clk 0:01:15.8]} 23. Bxe6+ {[%clk 0:01:34]} 23... Rxe6 {[%clk
0:01:14.5]} 24. Bxe7 {[%clk 0:01:27.5]} 24... Qxe7 {[%clk 0:01:14.7]} 25. Kg2
{[%clk 0:01:22.1]} 25... Rd8 {[%clk 0:01:14.6]} 26. Rfe1 {[%clk 0:01:19]} 26...
d5 {[%clk 0:01:03.2]} 27. exd5 {[%clk 0:01:19.1]} 27... cxd5 {[%clk 0:01:04.2]}
28. cxd5 {[%clk 0:01:18.5]} 28... Red6 {[%clk 0:01:04.8]} 29. Qc3 {[%clk
0:01:04.7]} 29... Rxd5 {[%clk 0:01:05.1]} 30. Qc4 {[%clk 0:01:05.7]} 30... Qf7
{[%clk 0:01:01]} 31. Rxd5 {[%clk 0:00:57.5]} 31... Qxd5+ {[%clk 0:00:58.3]} 32.
Qxd5+ {[%clk 0:00:58.1]} 32... Rxd5 {[%clk 0:00:59.2]} 33. Kf3 {[%clk
0:00:59.4]} 33... Kf7 {[%clk 0:00:51]} 34. Ke4 {[%clk 0:00:52.6]} 34... Ke6
{[%clk 0:00:42.5]} 35. Rc1 {[%clk 0:00:48]} 35... Rd4+ {[%clk 0:00:41.8]} 36.
Ke3 {[%clk 0:00:48.7]} 36... Rb4 {[%clk 0:00:41.1]} 37. Rc3 {[%clk 0:00:45]}
37... Kd6 {[%clk 0:00:42.3]} 38. h5 {[%clk 0:00:41.4]} 38... b5 {[%clk
0:00:40.4]} 39. a5 {[%clk 0:00:31.5]} 39... Rg4 {[%clk 0:00:31.7]} 40. Rc8
{[%clk 0:00:27]} 40... Rg5 {[%clk 0:00:23.6]} 41. Ra8 {[%clk 0:00:25.3]} 41...
Rxh5 {[%clk 0:00:24.8]} 42. Rxa7 {[%clk 0:00:26.4]} 42... Rg5 {[%clk 0:00:23.8]}
43. a6 {[%clk 0:00:22]} 43... Rg6 {[%clk 0:00:14.8]} 44. Rb7 {[%clk 0:00:19.4]}
44... Kc5 {[%clk 0:00:14.8]} 45. a7 {[%clk 0:00:19.5]} 45... Ra6 {[%clk
0:00:15.9]} 46. Rxg7 {[%clk 0:00:19.7]} 46... Ra3 {[%clk 0:00:16.3]} 47. Ke4
{[%clk 0:00:19.8]} 47... Kb4 {[%clk 0:00:16.7]} 48. Rb7 {[%clk 0:00:19.4]} 48...
Ra5 {[%clk 0:00:17.6]} 49. Kxe5 {[%clk 0:00:15.2]} 49... Kxb3 {[%clk 0:00:18.7]}
50. f4 {[%clk 0:00:16.4]} 50... b4+ {[%clk 0:00:16.8]} 51. Ke6 {[%clk
0:00:16.1]} 51... Kc4 {[%clk 0:00:17.6]} 52. f5 {[%clk 0:00:16.6]} 52... Ra6+
{[%clk 0:00:17.8]} 53. Ke7 {[%clk 0:00:16]} 53... Kc5 {[%clk 0:00:13.3]} 54. f6
{[%clk 0:00:16.9]} 54... Kc6 {[%clk 0:00:14.6]} 55. Rxb4 {[%clk 0:00:17]} 55...
Rxa7+ {[%clk 0:00:15]} 56. Ke6 {[%clk 0:00:17.1]} 56... Kc5 {[%clk 0:00:13.5]}
57. Rh4 {[%clk 0:00:17.6]} 57... Ra6+ {[%clk 0:00:13.6]} 58. Ke7 {[%clk
0:00:18.1]} 58... Ra7+ {[%clk 0:00:14.6]} 59. Kf8 {[%clk 0:00:19.1]} 59... Kd6
{[%clk 0:00:13.4]} 60. Rxh6 {[%clk 0:00:19.1]} 60... Ra8+ {[%clk 0:00:13.9]} 61.
Kg7 {[%clk 0:00:19.5]} 61... Ke6 {[%clk 0:00:12.7]} 62. f7+ {[%clk 0:00:19.5]}
62... Ke7 {[%clk 0:00:13.5]} 63. Rh4 {[%clk 0:00:19.3]} 63... Ke6 {[%clk
0:00:06.1]} 64. Re4+ {[%clk 0:00:18.9]} 64... Kf5 {[%clk 0:00:06.7]} 65. Re8
{[%clk 0:00:19.7]} 65... Kg4 {[%clk 0:00:07.5]} 66. Rxa8 {[%clk 0:00:19.5]} 1-0

[Event "*** MasterClass Titled Tuesday Blitz"]
[Site "Chess.com"]
[Date "2017.12.12"]
[Round "7"]
[White "kleinebeer98"]
[Black "Msb2"]
[Result "1/2-1/2"]
[WhiteElo "2521"]
[BlackElo "2660"]
[TimeControl "180+2"]
[EndTime "14:41:21 PST"]
[Termination "Game drawn by stalemate"]

1. e4 {[%clk 0:03:01.9]} 1... e6 {[%clk 0:03:01]} 2. d4 {[%clk 0:02:52.6]} 2...
d5 {[%clk 0:03:02.9]} 3. Nd2 {[%clk 0:02:54]} 3... Ne7 {[%clk 0:03:03.5]} 4.
Ngf3 {[%clk 0:02:51.8]} 4... g6 {[%clk 0:03:04.8]} 5. c3 {[%clk 0:02:51.5]} 5...
Bg7 {[%clk 0:03:05.3]} 6. Bd3 {[%clk 0:02:52.4]} 6... Nd7 {[%clk 0:03:06.8]} 7.
h4 {[%clk 0:02:50.8]} 7... h6 {[%clk 0:03:07.8]} 8. Qe2 {[%clk 0:02:49.9]} 8...
c5 {[%clk 0:03:06.3]} 9. h5 {[%clk 0:02:47.9]} 9... g5 {[%clk 0:03:04.6]} 10. b3
{[%clk 0:02:29.7]} 10... g4 {[%clk 0:02:56.6]} 11. Nh2 {[%clk 0:02:21.4]} 11...
cxd4 {[%clk 0:02:57.2]} 12. cxd4 {[%clk 0:02:22.5]} 12... Bxd4 {[%clk
0:02:59.1]} 13. Rb1 {[%clk 0:02:22.9]} 13... Ne5 {[%clk 0:02:36.4]} 14. Nxg4
{[%clk 0:02:15.9]} 14... Nxd3+ {[%clk 0:02:18.7]} 15. Qxd3 {[%clk 0:02:17.8]}
15... dxe4 {[%clk 0:02:18.1]} 16. Nxe4 {[%clk 0:02:19.7]} 16... f5 {[%clk
0:02:12.8]} 17. Nef6+ {[%clk 0:01:16.8]} 17... Kf7 {[%clk 0:02:03.5]} 18. Nxh6+
{[%clk 0:01:14.6]} 18... Rxh6 {[%clk 0:01:56]} 19. Bxh6 {[%clk 0:01:16.5]} 19...
Bxf2+ {[%clk 0:01:57.1]} 20. Ke2 {[%clk 0:01:18]} 20... Qxd3+ {[%clk 0:01:58.7]}
21. Kxd3 {[%clk 0:01:19]} 21... Kxf6 {[%clk 0:02:00.6]} 22. Rbf1 {[%clk
0:01:09.3]} 22... Bg3 {[%clk 0:01:54.9]} 23. Rf3 {[%clk 0:01:06.3]} 23... Bc7
{[%clk 0:01:17.9]} 24. g4 {[%clk 0:01:07]} 24... b6 {[%clk 0:01:15.9]} 25. g5+
{[%clk 0:01:06.6]} 25... Kf7 {[%clk 0:01:17.1]} 26. g6+ {[%clk 0:01:07.6]} 26...
Kf6 {[%clk 0:01:18.4]} 27. Rg1 {[%clk 0:01:05]} 27... Ba6+ {[%clk 0:01:15.9]}
28. Kc2 {[%clk 0:01:02.3]} 28... Nc6 {[%clk 0:01:14.6]} 29. Bg5+ {[%clk
0:00:55.1]} 29... Kg7 {[%clk 0:01:15.7]} 30. h6+ {[%clk 0:00:56.5]} 30... Kxg6
{[%clk 0:01:06.2]} 31. Rc3 {[%clk 0:00:29.6]} 31... Bh2 {[%clk 0:00:47.5]} 32.
Rg2 {[%clk 0:00:30.8]} 32... Nb4+ {[%clk 0:00:45.6]} 33. Kb2 {[%clk 0:00:29.5]}
33... Bb7 {[%clk 0:00:42.8]} 34. Rxh2 {[%clk 0:00:27.6]} 34... Kxg5 {[%clk
0:00:44.3]} 35. h7 {[%clk 0:00:26.6]} 35... f4 {[%clk 0:00:39]} 36. h8=Q {[%clk
0:00:25]} 36... Rxh8 {[%clk 0:00:39.9]} 37. Rxh8 {[%clk 0:00:26.9]} 37... Be4
{[%clk 0:00:41.3]} 38. Rc4 {[%clk 0:00:22.2]} 38... Nd3+ {[%clk 0:00:42.5]} 39.
Kc3 {[%clk 0:00:23.7]} 39... Bf5 {[%clk 0:00:43.1]} 40. Rg8+ {[%clk 0:00:24.8]}
40... Kh4 {[%clk 0:00:43.6]} 41. a4 {[%clk 0:00:18.4]} 41... e5 {[%clk
0:00:42.6]} 42. Rf8 {[%clk 0:00:17.1]} 42... Bg6 {[%clk 0:00:26.8]} 43. Rc6
{[%clk 0:00:18.3]} 43... Be4 {[%clk 0:00:27.2]} 44. Re6 {[%clk 0:00:09.1]} 44...
Kg3 {[%clk 0:00:24.1]} 45. Re7 {[%clk 0:00:05.4]} 45... f3 {[%clk 0:00:21.7]}
46. Rxa7 {[%clk 0:00:05.5]} 46... Nf4 {[%clk 0:00:20.7]} 47. Rg7+ {[%clk
0:00:04.4]} 47... Kf2 {[%clk 0:00:21.2]} 48. Kd2 {[%clk 0:00:05.7]} 48... Bd5
{[%clk 0:00:21.7]} 49. Re7 {[%clk 0:00:06]} 49... Ng6 {[%clk 0:00:21.9]} 50.
Ree8 {[%clk 0:00:05]} 50... Nxf8 {[%clk 0:00:22.7]} 51. Rxf8 {[%clk 0:00:06.9]}
51... Bxb3 {[%clk 0:00:23.5]} 52. Rf5 {[%clk 0:00:06.9]} 52... e4 {[%clk
0:00:23.7]} 53. Re5 {[%clk 0:00:06.4]} 53... Bd5 {[%clk 0:00:23]} 54. Re7 {[%clk
0:00:04.1]} 54... Kg2 {[%clk 0:00:22.4]} 55. Ke3 {[%clk 0:00:04.8]} 55... Bc4
{[%clk 0:00:21.1]} 56. Rxe4 {[%clk 0:00:03.7]} 56... f2 {[%clk 0:00:16.3]} 57.
Rg4+ {[%clk 0:00:04.6]} 57... Kh3 {[%clk 0:00:17.6]} 58. Rf4 {[%clk 0:00:03.7]}
58... f1=Q {[%clk 0:00:18.5]} 59. Rxf1 {[%clk 0:00:05.6]} 59... Bxf1 {[%clk
0:00:20.1]} 60. Kd4 {[%clk 0:00:06.5]} 60... Bg2 {[%clk 0:00:18]} 61. a5 {[%clk
0:00:06.1]} 61... bxa5 {[%clk 0:00:11.9]} 62. Kc3 {[%clk 0:00:07]} 62... Bc6
{[%clk 0:00:12.4]} 63. Kb2 {[%clk 0:00:08.9]} 63... Kg4 {[%clk 0:00:14.3]} 64.
Ka1 {[%clk 0:00:10.8]} 64... Kf4 {[%clk 0:00:16.2]} 65. Kb1 {[%clk 0:00:09.4]}
65... Ke5 {[%clk 0:00:18.1]} 66. Ka1 {[%clk 0:00:10.8]} 66... Kd4 {[%clk
0:00:20]} 67. Kb1 {[%clk 0:00:12.7]} 67... Kc3 {[%clk 0:00:21.7]} 68. Ka1 {[%clk
0:00:14.6]} 68... Kb3 {[%clk 0:00:23.6]} 69. Kb1 {[%clk 0:00:16.5]} 69... a4
{[%clk 0:00:25.5]} 70. Ka1 {[%clk 0:00:18.4]} 70... a3 {[%clk 0:00:27.4]} 71.
Kb1 {[%clk 0:00:20.3]} 71... Bd5 {[%clk 0:00:29.3]} 72. Ka1 {[%clk 0:00:22.2]}
72... Kb4 {[%clk 0:00:31.2]} 73. Kb1 {[%clk 0:00:24.1]} 73... Bb3 {[%clk
0:00:32.4]} 74. Ka1 {[%clk 0:00:26]} 74... Bc2 {[%clk 0:00:34.1]} 75. Ka2 {[%clk
0:00:27.2]} 75... Bd3 {[%clk 0:00:36]} 76. Ka1 {[%clk 0:00:29.1]} 76... Bc4
{[%clk 0:00:37.9]} 77. Kb1 {[%clk 0:00:30.4]} 77... Bb5 {[%clk 0:00:39.8]} 78.
Ka1 {[%clk 0:00:32.3]} 78... Ba4 {[%clk 0:00:41.7]} 79. Kb1 {[%clk 0:00:34.1]}
79... Bb3 {[%clk 0:00:43.6]} 80. Ka1 {[%clk 0:00:36]} 80... a2 {[%clk
0:00:45.5]} 81. Kb2 {[%clk 0:00:36.8]} 81... Bc4 {[%clk 0:00:47.4]} 82. Ka1
{[%clk 0:00:38.7]} 82... Bd5 {[%clk 0:00:49.3]} 83. Kb2 {[%clk 0:00:40.2]} 83...
Be6 {[%clk 0:00:51.2]} 84. Ka1 {[%clk 0:00:42.1]} 84... Bf7 {[%clk 0:00:53.1]}
85. Kb2 {[%clk 0:00:44]} 85... Bg8 {[%clk 0:00:55]} 86. Ka1 {[%clk 0:00:45.9]}
86... Ka3 {[%clk 0:00:56.9]} 1/2-1/2

[Event "*** MasterClass Titled Tuesday Blitz"]
[Site "Chess.com"]
[Date "2017.12.12"]
[Round "7"]
[White "BartoszSocko"]
[Black "JSPrepz"]
[Result "0-1"]
[WhiteElo "2537"]
[BlackElo "2718"]
[TimeControl "180+2"]
[EndTime "14:41:34 PST"]
[Termination "JSPrepz won by resignation"]

1. e4 {[%clk 0:03:01.9]} 1... e6 {[%clk 0:02:58.5]} 2. d4 {[%clk 0:03:02.7]}
2... d5 {[%clk 0:02:58.9]} 3. Nd2 {[%clk 0:03:04.2]} 3... Be7 {[%clk 0:02:58.9]}
4. Bd3 {[%clk 0:03:00.1]} 4... c5 {[%clk 0:02:59.2]} 5. dxc5 {[%clk 0:02:59.3]}
5... Nf6 {[%clk 0:02:59.6]} 6. exd5 {[%clk 0:02:55.6]} 6... Qxd5 {[%clk
0:02:57]} 7. Ngf3 {[%clk 0:02:55.5]} 7... Qxc5 {[%clk 0:02:57.5]} 8. O-O {[%clk
0:02:53.9]} 8... O-O {[%clk 0:02:58.4]} 9. a3 {[%clk 0:02:53.8]} 9... Nc6 {[%clk
0:02:59.1]} 10. b4 {[%clk 0:02:54.9]} 10... Qh5 {[%clk 0:02:58]} 11. Bb2 {[%clk
0:02:53.7]} 11... b6 {[%clk 0:02:54.4]} 12. Re1 {[%clk 0:02:37.1]} 12... Bb7
{[%clk 0:02:53.9]} 13. h3 {[%clk 0:02:32.2]} 13... Rad8 {[%clk 0:02:51.2]} 14.
Qe2 {[%clk 0:02:33.4]} 14... Nd5 {[%clk 0:02:45.4]} 15. Qe4 {[%clk 0:02:27.8]}
15... Nf6 {[%clk 0:02:46.5]} 16. Qf4 {[%clk 0:02:22]} 16... Nd5 {[%clk
0:02:39.9]} 17. Qg3 {[%clk 0:02:18.1]} 17... Bf6 {[%clk 0:02:35.9]} 18. Bxf6
{[%clk 0:02:10.9]} 18... Nxf6 {[%clk 0:02:37.8]} 19. Nc4 {[%clk 0:02:08.1]}
19... Nd4 {[%clk 0:02:28.5]} 20. Nxd4 {[%clk 0:01:48.5]} 20... Rxd4 {[%clk
0:02:30.4]} 21. Nd6 {[%clk 0:01:39.8]} 21... Ba8 {[%clk 0:02:23]} 22. c3 {[%clk
0:01:32]} 22... Rd5 {[%clk 0:02:15.9]} 23. Ne4 {[%clk 0:01:17.7]} 23... Nxe4
{[%clk 0:02:13.8]} 24. Bxe4 {[%clk 0:01:19.6]} 24... Rg5 {[%clk 0:02:11.9]} 25.
Qf4 {[%clk 0:01:17]} 25... Bxe4 {[%clk 0:02:07.7]} 26. Rxe4 {[%clk 0:01:18.9]}
26... Rd5 {[%clk 0:02:04.9]} 27. Rae1 {[%clk 0:01:18]} 27... Rfd8 {[%clk
0:02:03.4]} 28. R4e3 {[%clk 0:01:16.2]} 28... Rd1 {[%clk 0:01:47.8]} 29. c4
{[%clk 0:01:14.8]} 29... R1d4 {[%clk 0:01:43.1]} 30. Re4 {[%clk 0:01:10.6]}
30... Rd3 {[%clk 0:01:31.3]} 31. R4e3 {[%clk 0:01:04.2]} 31... Rd2 {[%clk
0:01:32.4]} 32. Rc3 {[%clk 0:00:58.4]} 32... R2d4 {[%clk 0:01:23.8]} 33. Qg3
{[%clk 0:00:49.2]} 33... h6 {[%clk 0:00:58.5]} 34. Kh2 {[%clk 0:00:49.1]} 34...
Qf5 {[%clk 0:00:44.5]} 35. c5 {[%clk 0:00:47.4]} 35... bxc5 {[%clk 0:00:38]} 36.
bxc5 {[%clk 0:00:49.3]} 36... Rc8 {[%clk 0:00:19.9]} 37. c6 {[%clk 0:00:50.5]}
37... Qd5 {[%clk 0:00:21.2]} 38. c7 {[%clk 0:00:50]} 38... Rc4 {[%clk
0:00:22.4]} 39. Rec1 {[%clk 0:00:46]} 39... R8xc7 {[%clk 0:00:19.6]} 40. Qxc7
{[%clk 0:00:47.6]} 40... Rxc7 {[%clk 0:00:20.8]} 41. Rxc7 {[%clk 0:00:49.4]}
41... Qa5 {[%clk 0:00:20.8]} 42. R1c3 {[%clk 0:00:45.5]} 42... h5 {[%clk
0:00:22.2]} 43. Kg1 {[%clk 0:00:46.5]} 43... h4 {[%clk 0:00:23.1]} 44. R7c5
{[%clk 0:00:47.8]} 44... Qa4 {[%clk 0:00:23.2]} 45. Rd3 {[%clk 0:00:45.5]} 45...
g6 {[%clk 0:00:22.8]} 46. Rc1 {[%clk 0:00:44]} 46... Kg7 {[%clk 0:00:23.2]} 47.
Re3 {[%clk 0:00:44.4]} 47... Qd4 {[%clk 0:00:23.1]} 48. Rce1 {[%clk 0:00:35.8]}
48... g5 {[%clk 0:00:23.7]} 49. Re5 {[%clk 0:00:35.2]} 49... Kg6 {[%clk
0:00:23.8]} 50. R5e3 {[%clk 0:00:35.4]} 50... Qb2 {[%clk 0:00:23.8]} 51. Rd1
{[%clk 0:00:35.6]} 51... Qc2 {[%clk 0:00:23.7]} 52. Rde1 {[%clk 0:00:33.6]}
52... Qa4 {[%clk 0:00:24.7]} 53. Rc1 {[%clk 0:00:32.7]} 53... Qa6 {[%clk
0:00:23.4]} 54. Rcc3 {[%clk 0:00:32.5]} 54... Qa5 {[%clk 0:00:23.3]} 55. Red3
{[%clk 0:00:32.8]} 55... e5 {[%clk 0:00:23.5]} 56. Re3 {[%clk 0:00:33.6]} 56...
f6 {[%clk 0:00:24.5]} 57. Rc1 {[%clk 0:00:31.2]} 57... Qd2 {[%clk 0:00:24.9]}
58. Rc6 {[%clk 0:00:30.3]} 58... Qd5 {[%clk 0:00:23.4]} 59. Ra6 {[%clk
0:00:26.5]} 59... Qc5 {[%clk 0:00:23.8]} 60. Rf3 {[%clk 0:00:24.6]} 60... Qe7
{[%clk 0:00:24.2]} 61. Kf1 {[%clk 0:00:19.3]} 61... e4 {[%clk 0:00:25.2]} 62.
Rc3 {[%clk 0:00:19.4]} 62... Qd7 {[%clk 0:00:24.4]} 63. Kg1 {[%clk 0:00:16.8]}
63... Qd1+ {[%clk 0:00:13.3]} 64. Kh2 {[%clk 0:00:18.1]} 64... Qd4 {[%clk
0:00:14.4]} 65. Rc2 {[%clk 0:00:15.8]} 65... Qe5+ {[%clk 0:00:14]} 66. Kg1
{[%clk 0:00:15.6]} 66... Qd4 {[%clk 0:00:13.8]} 67. Re6 {[%clk 0:00:12.5]} 67...
Qd1+ {[%clk 0:00:13.8]} 68. Kh2 {[%clk 0:00:12.9]} 68... Qxc2 {[%clk 0:00:15.7]}
69. Ra6 {[%clk 0:00:12.9]} 69... Qxf2 {[%clk 0:00:16.6]} 70. a4 {[%clk
0:00:12.7]} 70... e3 {[%clk 0:00:17.6]} 71. Rxa7 {[%clk 0:00:09.3]} 71... e2
{[%clk 0:00:19]} 72. Rf7 {[%clk 0:00:11.2]} 0-1